{"text_format":"3","workbook":"xlsx","n_sheets":1,"sheets":["Kgakala BoQ"],"not_rendered":{"images":1,"defined_names":1},"read":"whole","date_system":"1900"}

{"sheet":"Kgakala BoQ","index":0,"n_rows":1041,"n_cols":8,"rows_kept":1041}
[null,"MAQUASSI HILLS LOCAL MUNICIPALITY"]
[null,"UPGRADING OF GRAVEL ROADS WITH THE ASSOCIATED STORMWATER MANAGEMENT "]
[null,"TO BLOCK PAVING IN UMDUBU, ISIDULI, KGWALE AND LEGODI STREETS IN KGAKALA "]
[null,"TOWNSHIP"]
[null,"BILL OF QUANTITIES"]
[{"$nulls":7},"SECTION 1 : PRELIMINARY AND GENERAL"]
[null,"ITEM\nNO","PAYMENT","DESCRIPTION","UNIT","QTY","RATE","AMOUNT R"]
[]
[199," ","1200 A","SECTION 1 : PRELIMINARY AND GENERAL"]
[]
[200,"1.1","8.3","FIXED-CHARGE ITEMS"]
[]
[201,"1.1.1","8.3.1","Contractual Requirements","Sum",{"v":1,"d":" 1"}]
[]
[202,null,"8.3.2","Establish Facilities on the Site :"]
[]
[203,null,"8.3.2.1\r\nC3.4.5.2","Facilities for Engineer"]
[]
[204,"1.1.2","PSA 8.3.2.1","(a) Office complete as specified including monthly levies","Sum",{"v":1,"d":" 1"}]
[]
[205,"1.1.3",null,"(b) Supply and erect a contract notice board (No.2)","Sum",{"v":1,"d":" 1"}]
[]
[206,"1.1.4",null,"(c) Survey equipment and assistants","Sum",{"v":1,"d":" 1"}]
[]
[207,"1.1.5",null,"(d) Computer and communication facilities as specified (fixed cost)","Sum",{"v":1,"d":" 1"}]
[]
[208,null,"8.3.2.2","Facilities for Contractor"]
[]
[209,"1.1.6",null,"(a) Offices and storage sheds","Sum",{"v":1,"d":" 1"}]
[]
[210,"1.1.7",null,"(b) Workshops","Sum",{"v":1,"d":" 1"}]
[]
[211,"1.1.8",null,"(d) Living accommodation","Sum",{"v":1,"d":" 1"}]
[]
[212,"1.1.9",null,"(e) Ablution and latrine facilities","Sum",{"v":1,"d":" 1"}]
[]
[213,"1.1.10",null,"(f) Tools and equipment","Sum",{"v":1,"d":" 1"}]
[]
[214,"1.1.11",null,"(g) Water supplies, electric power and communications","Sum",{"v":1,"d":" 1"}]
[]
[null,"1.1.12",null,"(h) Dealing with water (subclause 5.5)","Sum",1]
[]
[null,"1.1.13",null,"(i) Access (subclause 5.8)","Sum",1]
[]
[]
[]
[null," TOTAL CARRIED FORWARD",{"$nulls":5},{"$f":"SUM(H9:H46)","v":{"v":0,"d":"R0.00"}}]
[null,"MAQUASSI HILLS LOCAL MUNICIPALITY"]
[null,"UPGRADING OF GRAVEL ROADS WITH THE ASSOCIATED STORMWATER MANAGEMENT "]
[null,"TO BLOCK PAVING IN UMDUBU, ISIDULI, KGWALE AND LEGODI STREETS IN KGAKALA "]
[null,"TOWNSHIP"]
[null,"BILL OF QUANTITIES"]
[{"$nulls":7},"SECTION 1 : PRELIMINARY AND GENERAL"]
[null,"ITEM\nNO","PAYMENT","DESCRIPTION","UNIT","QTY","RATE","AMOUNT R"]
[null," BROUGHT FORWARD",{"$nulls":5},{"$f":"H47","v":{"v":0,"d":"R0.00"}}]
[]
[217,"1.1.14","8.3.3","Other fixed-charge obligations","Sum",1]
[]
[218,"1.1.15","8.3.4","Remove Engineer's and Contractor's Site establishment on completion","Sum",1]
[]
[219,"1.2","8.4","TIME-RELATED ITEMS"]
[]
[220,"1.2.1","8.4.1","Contractual Requirements","month",8]
[]
[221,null,"8.4.2","Operate and maintain facilities on Site:"]
[]
[222,null,"8.4.2.1","Facilities for Engineer for duration of construction (SABS 3.2.8 AB)"]
[]
[223,"1.2.2",null,"(a) Office complete as specified including monthly levies","month",8]
[]
[225,"1.2.4",null,"(c) Survey assistants and material","month",{"$f":"F69","v":8}]
[]
[227,null,"8.4.2.2","Facilities for Contractor for duration of construction, except where otherwise stated"]
[]
[228,"1.2.6",null,"(a) Offices and storage sheds","month",{"$f":"F71","v":8}]
[]
[229,"1.2.7",null,"(b) Workshops","month",{"$f":"F75","v":8}]
[]
[230,"1.2.8",null,"(d) Living accommodation","month",{"$f":"F75","v":8}]
[]
[231,"1.2.9",null,"(e) Ablution and latrine facilities","month",{"$f":"F75","v":8}]
[]
[232,"1.2.10",null,"(f) Tools and equipment","month",{"$f":"F75","v":8}]
[]
[233,"1.2.11",null,"(g) Water supplies, electric power and communications","month",{"$f":"F75","v":8}]
[]
[234,"1.2.12",null,"(h) Dealing with water (subclause 5.5)","month",{"$f":"F75","v":8}]
[]
[235,"1.2.13",null,"(i) Access (subclause 5.8)","month",{"$f":"F75","v":8}]
[]
[null,"1.3","8.5","SUMS STATED PROVISIONALLY BY ENGINEER"]
[]
[]
[null," TOTAL CARRIED FORWARD",{"$nulls":5},{"$f":"SUM(H55:H93)","v":{"v":0,"d":"R0.00"}}]
[null,"MAQUASSI HILLS LOCAL MUNICIPALITY"]
[null,"UPGRADING OF GRAVEL ROADS WITH THE ASSOCIATED STORMWATER MANAGEMENT "]
[null,"TO BLOCK PAVING IN UMDUBU, ISIDULI, KGWALE AND LEGODI STREETS IN KGAKALA "]
[null,"TOWNSHIP"]
[null,"BILL OF QUANTITIES"]
[{"$nulls":7},"SECTION 1 : PRELIMINARY AND GENERAL"]
[null,"ITEM\nNO","PAYMENT","DESCRIPTION","UNIT","QTY","RATE","AMOUNT R"]
[null," BROUGHT FORWARD",{"$nulls":5},{"$f":"H94","v":{"v":0,"d":"R0.00"}}]
[]
[240,"1.3.1","PSA 8.5","(a) Rented accommodation for the engineer's site personnel for the duration of the works.","Prov Sum",{"v":60000,"d":"60 000"},null,"Rate Only"]
[{"$nulls":7},{"$f":"IF(NOT(ISBLANK(G105)),G105*F105,\"\")","v":""}]
[241,"1.3.2",null,"(b) Relocation of services, obstructions and dwellings affecting the works as ordered by the employer","Prov Sum",{"v":20000,"d":"20 000"}]
[]
[242,"1.3.3",null,"(c) Social facilitator costs","Prov Sum",{"$f":"4500*F89","v":{"v":36000,"d":"36 000"}}]
[]
[243,"1.3.4",null,"(d) Percentage for charges and profit on provisional sums","%",{"$f":"SUM(H104:H108)","v":{"v":0,"d":" 0"}},{"v":0.1,"d":"10%"}]
[]
[244,"1.4","8.6","PRIME COST ITEMS"]
[]
[245,"1.4.1",null,"(a) Extra tests, investigations or control survey required by the engineer for acceptance control.","PC SUM",{"v":20000,"d":"20 000"}]
[]
[246,"1.4.2",null,"(b) Remuneration of Liaison Officer(s) and reimbursement of telephone airtime.","PC SUM",{"$f":"7000*F89","v":{"v":56000,"d":"56 000"}}]
[]
[247,null,null,"(c) Remuneration of PSC","PC SUM",{"$f":"500*4*F89","v":{"v":16000,"d":"16 000"}}]
[]
[248,"1.4.3",null,"(d) Skills training allowance","PC SUM",{"v":100000,"d":"100 000"}]
[]
[250,"1.4.5",null,"(f) Percentage for charges and profit of Prime Cost items","%",{"$f":"SUM(H114:H120)","v":{"v":0,"d":" 0"}},{"v":0.1,"d":"10%"}]
[]
[251,"1.5","8.8","TEMPORARY WORKS"]
[]
[252,"1.5.1","8.8.2\r\nPS 8.1","Deal with traffic and maintain road (or accommodation of traffic)","Sum",{"v":1,"d":" 1.00"}]
[]
[253,null,"8.8.4\r\nPS 8.2","Existing services"]
[]
[254,"1.5.2",null,"(c) Excavate by hand in soft material to expose existing services","m3",{"v":50,"d":" 50"}]
[]
[255,"1.6","PSA8.8.10","OCCUPATIONAL HEALTH AND SAFETY ACT"]
[]
[]
[null," TOTAL CARRIED FORWARD",{"$nulls":5},{"$f":"SUM(H102:H134)","v":{"v":0,"d":"R0.00"}}]
[null,"MAQUASSI HILLS LOCAL MUNICIPALITY"]
[null,"UPGRADING OF GRAVEL ROADS WITH THE ASSOCIATED STORMWATER MANAGEMENT "]
[null,"TO BLOCK PAVING IN UMDUBU, ISIDULI, KGWALE AND LEGODI STREETS IN KGAKALA "]
[null,"TOWNSHIP"]
[null,"BILL OF QUANTITIES"]
[{"$nulls":7},"SECTION 1 : PRELIMINARY AND GENERAL"]
[null,"ITEM\nNO","PAYMENT","DESCRIPTION","UNIT","QTY","RATE","AMOUNT R"]
[null," BROUGHT FORWARD",{"$nulls":5},{"$f":"H135","v":{"v":0,"d":"R0.00"}}]
[]
[256,"1.6.1",null,"(a) Provision of a Health and Safety plan","L/SUM",{"v":1,"d":" 1.00"}]
[]
[257,"1.6.2",null,"(b) Provision of Health and Safety file","L/SUM",{"v":1,"d":" 1.00"}]
[]
[258,"1.6.3",null,"(c) Provision of a safety officer (part- \r\n      time) \t","L/SUM",{"v":1,"d":" 1.00"}]
[]
[259,"1.6.4",null,"(d) Health and Safety training ","L/SUM",{"v":1,"d":" 1.00"}]
[]
[260,"1.6.5",null,"(e) Provision of personal protective clothing and equipment","L/SUM",{"v":1,"d":" 1.00"}]
[]
[261,"1.6.6",null,"(f) Provision of safety fences, signs and barricades","L/SUM",{"v":1,"d":" 1.00"}]
[]
[262,"1.6.7",null,"(g) All other obligations deemed necessary by the contractor","L/SUM",{"v":1,"d":" 1.00"}]
[]
[263,"1.6.8",null,"(h) Remuneration of an independent Occupationa Health and Safety auditor nominated by the Engineer","month",{"v":1,"d":" 1.00"},null,"Rate Only"]
[{"$nulls":7},{"$f":"IF(NOT(ISBLANK(G160)),G160*F160,\"\")","v":""}]
{"$rows_empty":21}
[null," TOTAL CARRIED FORWARD TO SUMMARY",{"$nulls":5},{"$f":"SUM(H143:H180)","v":{"v":0,"d":"R0.00"}}]
[null,"MAQUASSI HILLS LOCAL MUNICIPALITY"]
[null,"UPGRADING OF GRAVEL ROADS WITH THE ASSOCIATED STORMWATER MANAGEMENT "]
[null,"TO BLOCK PAVING IN UMDUBU, ISIDULI, KGWALE AND LEGODI STREETS IN KGAKALA "]
[null,"TOWNSHIP"]
[null,"BILL OF QUANTITIES"]
[{"$nulls":7},"SECTION 2 : SITE CLEARANCE"]
[null,"ITEM\nNO","PAYMENT","DESCRIPTION","UNIT","QTY","RATE","AMOUNT R"]
[]
[264,null,"1200 C","SECTION 2 : SITE CLEARANCE"]
[]
[265,"2.1",null,"CLEAR SITE"]
[]
[266,"2.1.1","8.2.1","Clear and grub road reserves as instructed by the engineer.","ha",{"v":1.18,"d":" 1.18"}]
[]
[267,null,"8.2.2","Remove and grub large trees and tree stumps of girth"]
[]
[268,null,null,"Over      and      up to"]
[]
[269,"2.1.2",null,"1 m                2 m","No.",{"v":2,"d":" 2"},null,"Rate Only"]
[{"$nulls":7},{"$f":"IF(NOT(ISBLANK(G202)),G202*F202,\"\")","v":""}]
[270,"2.1.3",null,"2 m                3 m","No.",{"v":2,"d":" 2"},null,"Rate Only"]
[{"$nulls":7},""]
[271,null,"8.2.5","Take down existing fences and:",{"$nulls":3},""]
[{"$nulls":7},""]
[272,"2.1.4",null,"(a) Spoil","m",{"v":50,"d":" 50"},null,"Rate Only"]
[{"$nulls":7},""]
[273,null,null,"(b) Re-erect","m",{"$f":"F207","v":{"v":50,"d":" 50"}},null,"Rate Only"]
[{"$nulls":7},""]
[274,"2.1.5","8.2.8","Demolish and remove existing brick and concrete structures","m³",{"v":20,"d":" 20"}]
[]
[275,"2.1.6","8.2.9","Cart materials and debris to unspecified sites and dump","m³-km",{"$f":"F211*10","v":{"v":200,"d":" 200"}}]
[]
[]
[{"$nulls":7},""]
{"$rows_empty":13}
[null," TOTAL CARRIED FORWARD TO SUMMARY",{"$nulls":5},{"$f":"SUM(H191:H229)","v":{"v":0,"d":"R0.00"}}]
[null,"MAQUASSI HILLS LOCAL MUNICIPALITY"]
[null,"UPGRADING OF GRAVEL ROADS WITH THE ASSOCIATED STORMWATER MANAGEMENT "]
[null,"TO BLOCK PAVING IN UMDUBU, ISIDULI, KGWALE AND LEGODI STREETS IN KGAKALA "]
[null,"TOWNSHIP"]
[null,"BILL OF QUANTITIES"]
[{"$nulls":7},"SECTION 3 : STORMWATER DRAINAGE"]
[null,"ITEM\nNO","PAYMENT","DESCRIPTION","UNIT","QTY","RATE","AMOUNT R"]
[]
[276,null,null,"SECTION 3 : STORMWATER DRAINAGE"]
[]
[277,"3.1","1200 DB","EXCAVATION"]
[]
[278,null,"8.3.2(a)","Excavate, select, backfill, compact to 90% Mod AASHTO density and dispose of all surplus/unsuitable materials for 450mm to 1350mm dia. pipes:"]
[]
[279,"3.1.1",null," 0m              1m","m³",1299]
[]
[280,"3.1.2",null," 1m              2m","m³",439]
[]
[281,"3.1.3",null," 2m              3m","m³",439]
[]
[612,"3.1.4",null," 3m              4m","m³",0]
[]
[282,null,"8.3.2(b)","Extra-over items 3.1.1 to 3.1.3 for : "]
[]
[283,"3.1.4",null,"Hard rock excavation","m³",{"$f":"SUM(F245:F251)*0.1","v":{"v":217.70000000000002,"d":" 218"}}]
[]
[284,"3.2",null,"EXCAVATION ANCILLARIES"]
[]
[285,null,null,"Make up deficiency in backfill material (Provisional)"]
[]
[286,"3.2.1","8.3.3.1","(a) From other necessary excavations on site","m³",{"v":627,"d":" 627"}]
[]
[287,"3.2.2",null,"Compaction in road reserves as instructed by the engineer","m³",{"$f":"F261*0.1","v":{"v":62.7,"d":" 63"}}]
[]
[288,"3.3","1200 LB","PIPE BEDDING"]
[]
[289,null,"8.2.1","Provision of bedding from trench excavation"]
[]
[290,"3.3.1",null,"(a) Selected granular bedding material for Class B bedding","m³",{"v":633,"d":" 633"}]
[]
[291,"3.3.2",null,"(b) Selected fill material (fill blanket)","m³",{"v":2000,"d":"2 000"}]
[]
[292,null,"8.2.2","Supply only of bedding by importation"]
[]
[null," TOTAL CARRIED FORWARD",{"$nulls":5},{"$f":"SUM(H239:H273)","v":{"v":0,"d":"R0.00"}}]
[null,"MAQUASSI HILLS LOCAL MUNICIPALITY"]
[null,"UPGRADING OF GRAVEL ROADS WITH THE ASSOCIATED STORMWATER MANAGEMENT "]
[null,"TO BLOCK PAVING IN UMDUBU, ISIDULI, KGWALE AND LEGODI STREETS IN KGAKALA "]
[null,"TOWNSHIP"]
[null,"BILL OF QUANTITIES"]
[{"$nulls":7},"SECTION 3 : STORMWATER DRAINAGE"]
[null,"ITEM\nNO","PAYMENT","DESCRIPTION","UNIT","QTY","RATE","AMOUNT R"]
[null," BROUGHT FORWARD",{"$nulls":5},{"$f":"H275","v":{"v":0,"d":"R0.00"}}]
[]
[293,null,"8.2.2.1","Other necessary excavations onsite:"]
[]
[294,"3.3.3",null,"(a) Selected granular material for bedding","m³",{"v":127,"d":" 127"}]
[]
[295,"3.3.4",null,"(b) Selected fill material for fill blanket","m³",{"v":400,"d":" 400"}]
[]
[296,null,"8.2.2.3","Commercial sources (Provisional)"]
[]
[297,"3.3.5",null,"(a) 13.2 mm crushed stone for stone bedding","m³",{"v":50,"d":" 50"}]
[]
[298,null,"8.2.5","Overhaul"]
[299,"3.3.6",null,"(a) Selected granular material for bedding","m³-km",{"v":3292,"d":"3 292"}]
[]
[300,"3.3.7",null,"(b) Selected fill material for fill blanket","m³-km",{"v":10399,"d":"10 399"}]
[]
[301,"3.4","1200 LE","PIPES"]
[]
[302,null,"8.2.1","Supply, handle, lay, bed concrete pipes with ogee joints on class B bedding for:"]
[]
[497,"3.4.1",null,"1. 450 mm dia.  Class 100D","m",{"v":424.4,"d":" 424.4"}]
[]
[303,"3.4.2",null,"2. 525 mm dia.  Class 100D","m",{"v":99,"d":" 99"}]
[]
[304,"3.4.3",null,"3. 600 mm dia.  Class 100D","m",{"v":19,"d":" 19"}]
[]
[607,"3.4.4",null,"4. 750 mm dia.  Class 100D","m",{"v":223.3,"d":" 223.3"}]
[]
[608,"3.4.5",null,"5. 825 mm dia.  Class 100D","m",{"v":0,"d":" 0.0"}]
[]
[609,"3.4.6",null,"6. 900 mm dia.  Class 100D","m",{"v":314.1,"d":" 314.1"}]
[]
[610,"3.4.7",null,"7. 1050 mm dia.  Class 100D","m",{"v":29.4,"d":" 29.4"}]
[]
[611,"3.4.8",null,"6. 1200 mm dia.  Class 100D","m",{"v":44,"d":" 44.0"}]
[]
[613,"3.4.9",null,"7. 1350 mm dia.  Class 100D","m",{"v":481.3,"d":" 481.3"}]
[]
[305,"3.5","8.2.5","CONCRETE AND BRICKWORK"]
[]
[{"$nulls":3},"Includes formwork, reinforcement and strength concrete (as in Section G or GA, as applicable)"]
[]
[null," TOTAL CARRIED FORWARD",{"$nulls":5},{"$f":"SUM(H283:H324)","v":{"v":0,"d":"R0.00"}}]
[null,"MAQUASSI HILLS LOCAL MUNICIPALITY"]
[null,"UPGRADING OF GRAVEL ROADS WITH THE ASSOCIATED STORMWATER MANAGEMENT "]
[null,"TO BLOCK PAVING IN UMDUBU, ISIDULI, KGWALE AND LEGODI STREETS IN KGAKALA "]
[null,"TOWNSHIP"]
[null,"BILL OF QUANTITIES"]
[{"$nulls":7},"SECTION 3 : STORMWATER DRAINAGE"]
[null,"ITEM\nNO","PAYMENT","DESCRIPTION","UNIT","QTY","RATE","AMOUNT R"]
[null," BROUGHT FORWARD",{"$nulls":5},{"$f":"H326","v":{"v":0,"d":"R0.00"}}]
[]
[307,null,null,"(a) Headwalls for portal or pipe culvert (Drw STD 005) ends for the following sizes"]
[]
[308,"3.5.1",null,"1.   1350mm dia. pipe","No.",{"v":1,"d":" 1"}]
[]
[310,null,"8.2.8","(b) Field inlets complete (Drw STD 005) with slab and benching for the following pipe sizes"]
[]
[311,"3.5.3",null,"1.   600mm dia. pipe","No.",{"v":1,"d":" 1"},null,"Rate Only"]
[]
[312,"3.5.4",null,"2.   750mm dia. pipe","No.",{"v":1,"d":" 1"},null,"Rate Only"]
[]
[313,null,null,"(c) Stormwater manholes (junction box) for the following types & pipe sizes"]
[]
[314,null,null,"Type A junction box complete as detailed (Drw STD 004-1), Depth equals pipe diameter plus 1m and dimensions determined for a pipe diameter of:"]
[]
[498,"3.5.5",null,"1.   450mm dia. pipes","No.",{"v":5,"d":" 5.0"}]
[]
[315,"3.5.6",null,"2.   750mm dia. pipes","No.",{"v":1,"d":" 1"}]
[]
[316,"3.5.7",null,"3.   900mm dia. pipes","No.",{"v":5,"d":" 5"}]
[]
[614,"3.4.8",null,"4.   1350mm dia. pipes","No.",{"v":6,"d":" 6.0"}]
[]
[317,null,null,"Type B junction box complete as detailed (Drw STD 044-2), Depth equals pipe diameter plus 1m and dimensions determined for a pipe diameter of:"]
[]
[499,"3.5.8",null,"1.   450mm dia. pipes","No.",{"v":2,"d":" 2.0"},null,"Rate Only"]
[]
[318,"3.5.9",null,"2.   600mm dia. pipes","No.",{"v":1,"d":" 1"},null,"Rate Only"]
[]
[319,"3.5.10",null,"3.   750mm dia. pipes","No.",{"v":0,"d":" 0"},null,"Rate Only"]
[]
[]
[]
[{"$nulls":7},{"$f":"IF(NOT(ISBLANK(G368)),G368*F368,\"\")","v":""}]
[null," TOTAL CARRIED FORWARD",{"$nulls":5},{"$f":"SUM(H334:H367)","v":{"v":0,"d":"R0.00"}}]
[null,"MAQUASSI HILLS LOCAL MUNICIPALITY"]
[null,"UPGRADING OF GRAVEL ROADS WITH THE ASSOCIATED STORMWATER MANAGEMENT "]
[null,"TO BLOCK PAVING IN UMDUBU, ISIDULI, KGWALE AND LEGODI STREETS IN KGAKALA "]
[null,"TOWNSHIP"]
[null,"BILL OF QUANTITIES"]
[{"$nulls":7},"SECTION 3 : STORMWATER DRAINAGE"]
[null,"ITEM\nNO","PAYMENT","DESCRIPTION","UNIT","QTY","RATE","AMOUNT R"]
[null," BROUGHT FORWARD",{"$nulls":5},{"$f":"H369","v":{"v":0,"d":"R0.00"}}]
[{"$nulls":7},{"$f":"IF(NOT(ISBLANK(G378)),G378*F378,\"\")","v":""}]
[320,null,null,"Type C junction box complete as detailed (Drw STD 004-3, Depth equals pipe diameter plus 1m and dimensions determined for a pipe diameter of:"]
[]
[500,"3.5.11",null,"1.   450mm dia. pipes","No.",{"v":2,"d":" 2.0"}]
[{"$nulls":7},{"$f":"IF(NOT(ISBLANK(G382)),G382*F382,\"\")","v":""}]
[321,"3.5.12",null,"1.   600mm dia. pipes","No.",{"v":0,"d":" 0"},null,"Rate Only"]
[]
[322,"3.5.13",null,"2.   750mm dia. pipes","No.",{"v":0,"d":" 0"},null,"Rate Only"]
[]
[323,null,null,"(d) Sloped kerb inlets complete as detailed (Drw STD 007) for lengths:"]
[]
[324,"3.5.14",null,"1. 3.0m Inlet","No.",{"v":25,"d":" 25"}]
[]
[325,null,null,"(e) Extra over or under for the variation in depth of manholes from the depth designated for purposes of tendering for:"]
[]
[326,"3.5.15",null,"1. Type A","No.",{"v":1,"d":" 1"}]
[]
[327,"3.5.16",null,"2. Type B","No.",{"v":4,"d":" 4"}]
[]
[328,"3.5.17",null,"2. Type C","No.",{"v":1,"d":" 1"}]
[]
[329,"3.6",null,"CHANNELLING"]
[]
[330,null,"1200 DA","Excavation"]
[]
[331,"3.6.1","8.3.2","Excavation restricted in all materials.","m³",{"v":469,"d":" 469"}]
[]
[332,null,"1200 MK","Channelling"]
[]
[333,"3.6.2","8.2.7\r\n1200 MK","Trimming of excavations for concrete lined open drains and transitions","m²",{"v":8400,"d":"8 400"}]
[]
[334,null,"8.2.2","Class 25/19 MPa concrete cast in-situ (Drw STD017) (rate to include all formwork reinforcing and joints)"]
[]
[]
[]
[]
[null," TOTAL CARRIED FORWARD",{"$nulls":5},{"$f":"SUM(H377:H412)","v":{"v":0,"d":"R0.00"}}]
[null,"MAQUASSI HILLS LOCAL MUNICIPALITY"]
[null,"UPGRADING OF GRAVEL ROADS WITH THE ASSOCIATED STORMWATER MANAGEMENT "]
[null,"TO BLOCK PAVING IN UMDUBU, ISIDULI, KGWALE AND LEGODI STREETS IN KGAKALA "]
[null,"TOWNSHIP"]
[null,"BILL OF QUANTITIES"]
[{"$nulls":7},"SECTION 3 : STORMWATER DRAINAGE"]
[null,"ITEM\nNO","PAYMENT","DESCRIPTION","UNIT","QTY","RATE","AMOUNT R"]
[null," BROUGHT FORWARD",{"$nulls":5},{"$f":"H414","v":{"v":0,"d":"R0.00"}}]
[]
[335,"3.6.3",null,"1.   Type 1.2","m",{"v":10,"d":" 10"}]
[]
[336,"3.6.4",null,"2.   Type 1.3","m",{"v":0,"d":" 0"},null,"Rate Only"]
[]
[337,"3.6.5",null,"3.   Type 2","m",{"v":0,"d":" 0"},null,"Rate Only"]
{"$rows_empty":38}
[null," TOTAL CARRIED FORWARD TO SUMMARY",{"$nulls":5},{"$f":"SUM(H422:H465)","v":{"v":0,"d":"R0.00"}}]
[null,"MAQUASSI HILLS LOCAL MUNICIPALITY"]
[null,"UPGRADING OF GRAVEL ROADS WITH THE ASSOCIATED STORMWATER MANAGEMENT "]
[null,"TO BLOCK PAVING IN UMDUBU, ISIDULI, KGWALE AND LEGODI STREETS IN KGAKALA "]
[null,"TOWNSHIP"]
[null,"BILL OF QUANTITIES"]
[{"$nulls":7},"SECTION 4: EARTHWORKS (ROADS, SUBGRADE)"]
[null,"ITEM\nNO","PAYMENT","DESCRIPTION","UNIT","QTY","RATE","AMOUNT R"]
[]
[338,null,"1200 DM","SECTION 4: EARTHWORKS (ROADS, SUBGRADE)"]
[]
[339,"4.1",null,"PREPARATION OF SITE"]
[]
[340,"4.1.1","8.3.2(a)","Remove topsoil to a depth of 100mm, stockpile and maintain (provisional)","m³",{"v":921,"d":" 921"}]
[]
[341,"4.2",null,"TREATMENT OF ROAD-BED"]
[]
[342,null,"8.3.3(a)","Road-bed preparation and compaction of material where instructed by the engineer"]
[]
[343,"4.2.1",null,"2. Compact to 93 % mod. AASHTO maximum density","m³",{"v":1397,"d":"1 397"}]
[]
[344,"4.3",null,"EARTHWORKS"]
[]
[345,null,"8.3.4","Cut to fill"]
[]
[346,"4.3.1",null,"Compact to 90 % mod. AASHTO maximum density","m³",{"v":200,"d":" 200"}]
[]
[347,null,"8.3.4","Borrow to fill"]
[]
[348,"4.3.2",null,"Compact to 90 % mod. AASHTO   maximum density","m³",{"v":200,"d":" 200"}]
[]
[349,"4.3.3","8.3.5","Construct selected layer (G6) compacted to 95% mod. AASHTO density (provisional)","m³",{"v":1176,"d":"1 176"}]
[]
[350,null,"8.3.7","Cut to spoil from"]
[]
[351,"4.3.4",null,"Soft excavation","m³",{"v":3818.4,"d":"3 818"}]
[]
[352,"4.3.5",null,"Hard excavation","m³",{"$f":"F502*10%","v":{"v":381.84000000000003,"d":" 382"}}]
[]
[353,"4.4",null,"SUNDRIES"]
[]
[354,"4.4.1","8.3.11","Extra-over items 4.1 and 4.3.1 to 4.3.3 for temporary stockpiling of material","m³",{"$f":"F486","v":{"v":1397,"d":"1 397"}}]
[]
[]
[]
[null," TOTAL CARRIED FORWARD",{"$nulls":5},{"$f":"SUM(H475:H510)","v":{"v":0,"d":"R0.00"}}]
[null,"MAQUASSI HILLS LOCAL MUNICIPALITY"]
[null,"UPGRADING OF GRAVEL ROADS WITH THE ASSOCIATED STORMWATER MANAGEMENT "]
[null,"TO BLOCK PAVING IN UMDUBU, ISIDULI, KGWALE AND LEGODI STREETS IN KGAKALA "]
[null,"TOWNSHIP"]
[null,"BILL OF QUANTITIES"]
[{"$nulls":7},"SECTION 4: EARTHWORKS (ROADS, SUBGRADE)"]
[null,"ITEM\nNO","PAYMENT","DESCRIPTION","UNIT","QTY","RATE","AMOUNT R"]
[null," BROUGHT FORWARD",{"$nulls":5},{"$f":"H512","v":{"v":0,"d":"R0.00"}}]
[]
[355,"4.5","8.3.12","OVERHAUL"]
[]
[356,"4.5.1",null,"Extra-over items 4.1 and 4.3 for hauling material in excess of the freehaul of 0,5km but not more than 1,0km","m³",{"v":4709,"d":"4 709"}]
[]
[357,"4.5.2",null,"Extra-over item 4.5.1 for hauling material in excess of the haul of 1,0km","m³-km",{"v":47094,"d":"47 094"}]
{"$rows_empty":36}
[null," TOTAL CARRIED FORWARD TO SUMMARY",{"$nulls":5},{"$f":"SUM(H520:H559)","v":{"v":0,"d":"R0.00"}}]
[null,"MAQUASSI HILLS LOCAL MUNICIPALITY"]
[null,"UPGRADING OF GRAVEL ROADS WITH THE ASSOCIATED STORMWATER MANAGEMENT "]
[null,"TO BLOCK PAVING IN UMDUBU, ISIDULI, KGWALE AND LEGODI STREETS IN KGAKALA "]
[null,"TOWNSHIP"]
[null,"BILL OF QUANTITIES"]
[{"$nulls":7},"SECTION 5: SUBBASE"]
[null,"ITEM\nNO","PAYMENT","DESCRIPTION","UNIT","QTY","RATE","AMOUNT R"]
[]
[358,"5.1","1200 ME","SECTION 5 : SUBBASE"]
[]
[359,null,"8.3.1","Construct gravel subbase with material from windrow, stockpile or borrow pit in all materials compacted to 96% of Mod. AASHTO density (G5)"]
[]
[360,"5.1.1",null,"150 mm","m³",{"v":1397,"d":"1 397"}]
[]
[361,null,"8.3.5","Process material as follow: (provisional)"]
[]
[362,"5.1.2",null,"Subbase stabilized with cement and compacted to 97% Mod. AASHTO density","m³",{"v":1397,"d":"1 397"}]
[]
[363,null,"8.3.8","Stabilizing agent"]
[]
[364,"5.1.3",null,"Portland cement","t",{"v":77,"d":" 77"}]
[]
[365,"5.1.4","8.3.9","Overhaul","m³-km",{"v":14320,"d":"14 320"}]
{"$rows_empty":25}
[null," TOTAL CARRIED FORWARD TO SUMMARY",{"$nulls":5},{"$f":"SUM(H572:H611)","v":{"v":0,"d":"R0.00"}}]
[null,"MAQUASSI HILLS LOCAL MUNICIPALITY"]
[null,"UPGRADING OF GRAVEL ROADS WITH THE ASSOCIATED STORMWATER MANAGEMENT "]
[null,"TO BLOCK PAVING IN UMDUBU, ISIDULI, KGWALE AND LEGODI STREETS IN KGAKALA "]
[null,"TOWNSHIP"]
[null,"BILL OF QUANTITIES"]
[{"$nulls":7},"SECTION 6: BASE"]
[null,"ITEM\nNO","PAYMENT","DESCRIPTION","UNIT","QTY","RATE","AMOUNT R"]
[]
[555,null,"SANS\r\n1200 MF","SECTION 6: BASE"]
[]
[556,"6.1","8.3.3","Construct  base with material from commercial sources provided by the contractor"]
[]
[606,null,null,"b) Graded crushed stone"]
[]
[557,"6.1.1",null,"150mm thick crushed stone base  (G3) compacted to 102%  MOD AASHTO, material obtained from borrow pit provided by the contractor.","m³",{"v":220.5,"d":" 220.5"}]
{"$rows_empty":13}
[{"$nulls":7},{"$f":"IF(NOT(ISBLANK(G641)),G641*F641,\"\")","v":""}]
[{"$nulls":7},""]
[{"$nulls":7},""]
[{"$nulls":7},""]
[{"$nulls":7},""]
[{"$nulls":7},""]
[{"$nulls":7},""]
[{"$nulls":7},""]
[{"$nulls":7},""]
[{"$nulls":7},""]
[{"$nulls":7},""]
[{"$nulls":7},""]
[{"$nulls":7},""]
[{"$nulls":7},""]
[{"$nulls":7},""]
[{"$nulls":7},""]
[{"$nulls":7},""]
[]
[null," TOTAL CARRIED FORWARD TO SUMMARY",{"$nulls":5},{"$f":"SUM(H621:H646)","v":{"v":0,"d":"R0.00"}}]
[null,"MAQUASSI HILLS LOCAL MUNICIPALITY"]
[null,"UPGRADING OF GRAVEL ROADS WITH THE ASSOCIATED STORMWATER MANAGEMENT "]
[null,"TO BLOCK PAVING IN UMDUBU, ISIDULI, KGWALE AND LEGODI STREETS IN KGAKALA "]
[null,"TOWNSHIP"]
[null,"BILL OF QUANTITIES"]
[{"$nulls":7},"SECTION 7: ASPHALT BASE AND SURFACING"]
[null,"ITEM\nNO","PAYMENT","DESCRIPTION","UNIT","QTY","RATE","AMOUNT R"]
[]
[501,null,"SANS\r\n1200 MH","SECTION 7: ASPHALT BASE AND SURFACING"]
[]
[542,null,null,"PRIME COAT"]
[]
[543,"7.1","8.5.1","Prime coat using:"]
[]
[544,"7.1.1",null,"MC -10 cut-back bitumen","m²",{"v":600,"d":" 600.0"}]
[]
[545,null,"8.5.5","Variations in quantities of prime:"]
[]
[546,"7.1.2",null,"MC -10 cut-back bitumen","ℓ",{"v":1176,"d":"1 176.0"}]
[]
[547,null,null,"TACK COAT"]
[]
[548,"7.2","8.5.3","Spray surface using emulsion"]
[]
[549,"7.2.1",null,"30% stable-grade emulsion  ","m²",{"v":600,"d":" 600.0"}]
[]
[550,"7.3","8.5.5","Variations in quantity of emulsion:"]
[]
[551,"7.3.1",null,"30% stable-grade emulsion  ","ℓ",{"v":1176,"d":"1 176.0"}]
[]
[552,null,null,"ASPHALT SURFACING"]
[]
[553,"7.4","8.5.4","Continuously graded surfacing using:"]
[]
[554,"7.4.1",null,"a)Using 80/100 penetration bitumen","m²",{"v":600,"d":" 600.0"}]
[]
[503,"7.5","LI 8.6","Mechanically Saw-cutting of existing asphalt","m",{"v":50,"d":" 50.0"}]
{"$rows_empty":14}
[null," TOTAL CARRIED FORWARD TO SUMMARY",{"$nulls":5},{"$f":"SUM(H668:H708)","v":{"v":0,"d":"R0.00"}}]
[null,"MAQUASSI HILLS LOCAL MUNICIPALITY"]
[null,"UPGRADING OF GRAVEL ROADS WITH THE ASSOCIATED STORMWATER MANAGEMENT "]
[null,"TO BLOCK PAVING IN UMDUBU, ISIDULI, KGWALE AND LEGODI STREETS IN KGAKALA "]
[null,"TOWNSHIP"]
[null,"BILL OF QUANTITIES"]
[{"$nulls":7},"SECTION 8 : SEGMENTED PAVING"]
[null,"ITEM\nNO","PAYMENT","DESCRIPTION","UNIT","QTY","RATE","AMOUNT R"]
[]
[366,"6","1200 MJ","SECTION 8 : SEGMENTED PAVING"]
[]
[367,"6.1","8.2.2","Construction of paving complete (25MPa/80mm type S-A interlocking blocks) grey coloured","m²",{"v":7000,"d":"7 000"}]
[]
[368,"6.2","8.2.3","Cutting units to fit edge restraint","m",{"v":2696,"d":"2 696"}]
{"$rows_empty":37}
[null," TOTAL CARRIED FORWARD TO SUMMARY",{"$nulls":5},{"$f":"SUM(H720:H750)","v":{"v":0,"d":"R0.00"}}]
[null,"MAQUASSI HILLS LOCAL MUNICIPALITY"]
[null,"UPGRADING OF GRAVEL ROADS WITH THE ASSOCIATED STORMWATER MANAGEMENT "]
[null,"TO BLOCK PAVING IN UMDUBU, ISIDULI, KGWALE AND LEGODI STREETS IN KGAKALA "]
[null,"TOWNSHIP"]
[null,"BILL OF QUANTITIES"]
[{"$nulls":7},"SECTION 9 : KERBING AND CHANNELLING"]
[null,"ITEM\nNO","PAYMENT","DESCRIPTION","UNIT","QTY","RATE","AMOUNT R"]
[]
[369,"9","1200 MK","SECTION 9 : KERBING AND CHANNELLING"]
[]
[370,"9.1",null,"CONCRETE KERBING AND CHANNELLING"]
[]
[371,"9.1.1","8.2.2","Fig 8c - Precast Mountable kerbing complete (25 MPa concrete)","m",{"v":1591,"d":"1 591"}]
[]
[372,"9.1.2","8.2.2","Fig 7 - Precast Semi-mountable kerbing complete (25 MPa concrete)","m",{"v":5,"d":" 5"}]
[]
[373,"9.1.3","8.2.2","pre cast 150mm x 150mm concrete edge beams complete (25 MPa concrete)","m",{"v":1591,"d":"1 591"}]
[]
[374,"9.1.4","8.2.2","In-situ cast 200mm x 200mm concrete edge beams complete (25 MPa concrete)","m",{"v":5,"d":" 5"}]
[]
[375,null,"8.2.3","Variation of tests on extruded kerbing"]
[]
[376,"9.1.5",null,"(b) Set of 3 cubes (provisional)","No.",{"v":5,"d":" 5"}]
{"$rows_empty":23}
[null," TOTAL CARRIED FORWARD TO SUMMARY",{"$nulls":5},{"$f":"SUM(H771:H797)","v":{"v":0,"d":"R0.00"}}]
[null,"MAQUASSI HILLS LOCAL MUNICIPALITY"]
[null,"UPGRADING OF GRAVEL ROADS WITH THE ASSOCIATED STORMWATER MANAGEMENT "]
[null,"TO BLOCK PAVING IN UMDUBU, ISIDULI, KGWALE AND LEGODI STREETS IN KGAKALA "]
[null,"TOWNSHIP"]
[null,"BILL OF QUANTITIES"]
[{"$nulls":7},"SECTION 10 : CABLE DUCTS"]
[null,"ITEM\nNO","PAYMENT","DESCRIPTION","UNIT","QTY","RATE","AMOUNT R"]
[]
[377,"10","1200 LC","SECTION 10 : CABLE DUCTS"]
[]
[378,"10.1","8.2.2","EXCAVATION"]
[]
[379,"10.1.1",null,"(a) Excavate in all materials for trenches, backfill, compact and dispose of surplus material ","m3",{"v":200,"d":" 200"}]
[]
[380,null,"8.2.5","Supply, lay, bed and prove ducts complete with end caps for:"]
[]
[381,"10.1.2",null,"1. 110 mm dia. Polyduct or simalar approved","m",{"v":100,"d":" 100"}]
[]
[382,"10.1.3",null,"2. 160 mm dia. Polyduct or similar approved.","m",{"v":100,"d":" 100"}]
{"$rows_empty":28}
[null," TOTAL CARRIED FORWARD TO SUMMARY",{"$nulls":5},{"$f":"SUM(H818:H853)","v":{"v":0,"d":"R0.00"}}]
[null,"MAQUASSI HILLS LOCAL MUNICIPALITY"]
[null,"UPGRADING OF GRAVEL ROADS WITH THE ASSOCIATED STORMWATER MANAGEMENT "]
[null,"TO BLOCK PAVING IN UMDUBU, ISIDULI, KGWALE AND LEGODI STREETS IN KGAKALA "]
[null,"TOWNSHIP"]
[null,"BILL OF QUANTITIES"]
[{"$nulls":7},"SECTION 11 : SUBSOIL DRAINS"]
[null,"ITEM\nNO","PAYMENT","DESCRIPTION","UNIT","QTY","RATE","AMOUNT R"]
[]
[383,"11",null,"SECTION 9 : SUBSOIL DRAINS"]
[]
[384,"11.1",null,"EXCAVATION"]
[]
[385,null,"21.03","(a) Excavate soft material situated within the following depth ranges below the surface level:"]
[]
[386,"11.1.1",null,"(i) 0 m  up to   1.5 m","m³",{"v":120,"d":" 120"}]
[]
[387,"11.1.2",null,"(ii) Exceeding 1.5 m up to 3.0 m","m³",{"v":10,"d":" 10"}]
[]
[388,"11.1.3","21.04","Impermeable backfilling to subsoil drainage system","m³",{"v":90,"d":" 90"}]
[]
[389,null,"21.06","Natural permeable material in subsoil drainage system"]
[]
[390,"11.1.4",null,"(b) Chrushed stone obtained from commercial cources","m³",{"v":30,"d":" 30"}]
[]
[391,null,"21.08","Pipes in subsoil drainage system"]
[]
[392,"11.1.5",null,"(a) 110 mm dia. perforated uPVC pipes complete with couplings","m",{"v":200,"d":" 200"}]
[]
[393,"11.1.6",null,"Bidum U24 or similar approved","m²",{"v":250,"d":" 250"}]
{"$rows_empty":17}
[null," TOTAL CARRIED FORWARD TO SUMMARY",{"$nulls":5},{"$f":"SUM(H869:H894)","v":{"v":0,"d":"R0.00"}}]
[null,"MAQUASSI HILLS LOCAL MUNICIPALITY"]
[null,"UPGRADING OF GRAVEL ROADS WITH THE ASSOCIATED STORMWATER MANAGEMENT "]
[null,"TO BLOCK PAVING IN UMDUBU, ISIDULI, KGWALE AND LEGODI STREETS IN KGAKALA "]
[null,"TOWNSHIP"]
[null,"BILL OF QUANTITIES"]
[{"$nulls":7},"SECTION 12 : ANCILLARY ROADWORKS"]
[null,"ITEM\nNO","PAYMENT","DESCRIPTION","UNIT","QTY","RATE","AMOUNT R"]
[]
[396,"12","SANS\r\n1200 MM","SECTION 12 : ANCILLARY ROADWORKS"]
[]
[409,null,null,"PERMANENT TRAFFIC SIGNS"]
[]
[410,"12.1","8.3.1","Sign faces with painted or galvanized (as stated) background. Symbols, characters, legend, and borders in engineering grade retroreflective material with signboards constructed from"]
[]
[411,null,null,"a) Aluminium sheet (2,0 mm thick): "]
[]
[414,"12.1.1",null,"Area exceeding 0,5 m² but not 2,0 m²","m²",{"v":20,"d":" 20.0"}]
[]
[420,"12.2","8.3.2","Extra-Over Item .2 for using"]
[]
[421,"12.2.1",null,"a) Engineering grade retroreflective background ","m²",{"v":10,"d":" 10.0"}]
[]
[424,"12.3","8.3.3","Sign Supports"]
[]
[426,"12.3.1",null,"b) 100mm  galvanized stell pole","No.",{"v":20,"d":" 20.0"}]
[]
[428,".2.4","8.1.1 &\r\n8.3.4","Excavation for sign supports and backfilling with in-situ material","m³",{"v":5,"d":" 5.0"}]
[]
[429,".2.5","8.3.5","Distance markers","No.",{"v":10,"d":" 10.0"}]
[]
[430,".2.6","8.3.7","Statutory signs, street names, and the like, supplied and erected complete","No.",{"v":10,"d":" 10.0"}]
[]
[431,null,"8.3.7","Dismantling and re-erection of road signs having a surface area of Over and Up to"]
[]
[432,".2.7",null,"area up to 2 m²","No.",{"v":5,"d":" 5.0"}]
[]
[436," .3",null,"ROAD MARKINGS"]
[]
[null,null,"8.4.1","Non-reflectorized paint applied at nominal rate of 0,42 l/m2 (or proprietary brand roadmarking material applied at a nominal rate of ... l/m2)"]
[]
[null," TOTAL CARRIED FORWARD",{"$nulls":5},{"$f":"SUM(H913:H943)","v":{"v":0,"d":"R0.00"}}]
[null,"MAQUASSI HILLS LOCAL MUNICIPALITY"]
[null,"UPGRADING OF GRAVEL ROADS WITH THE ASSOCIATED STORMWATER MANAGEMENT "]
[null,"TO BLOCK PAVING IN UMDUBU, ISIDULI, KGWALE AND LEGODI STREETS IN KGAKALA "]
[null,"TOWNSHIP"]
[null,"BILL OF QUANTITIES"]
[{"$nulls":7},"SECTION 12 : ANCILLARY ROADWORKS"]
[null,"ITEM\nNO","PAYMENT","DESCRIPTION","UNIT","QTY","RATE","AMOUNT R"]
[null," BROUGHT FORWARD",{"$nulls":5},{"$f":"H945","v":{"v":0,"d":"R0.00"}}]
[437]
[438," .3.1",null,"a) White lines (broken or unbroken) (width 150mm)","km",{"v":1.8,"d":" 1.8"}]
[]
[439," .3.2",null,"b) Yellow lines (broken or unbroken) (width ... mm)","km",{"v":0.5,"d":" 0.5"}]
[]
[440," .3.3",null,"c) White characters and symbols","m²",{"v":150,"d":" 150.0"}]
[]
[441," .3.4",null,"d) Yellow characters and symbols","m²",{"v":20,"d":" 20.0"}]
[]
[442," .3.5",null,"e) Traffic island markings (any colour)","m²",{"v":20,"d":" 20.0"}]
[]
[443,null,"8.4.2","Variation in rate of application from that stated for item .3"]
[]
[444," .3.6",null,"a) White paint","ℓ",{"v":150,"d":" 150.0"}]
[]
[445," .3.7",null,"b) Yellow paint","ℓ",{"v":20,"d":" 20.0"}]
[]
[449," .3.8","8.4.4","Setting out and premarking of lines (excluding traffic island markings, characters, and symbols)","km",{"v":1.8,"d":" 1.8"}]
{"$rows_empty":13}
[{"$nulls":7},{"$f":"IF(NOT(ISBLANK(G985)),G985*F985,\"\")","v":""}]
[{"$nulls":7},""]
[{"$nulls":7},""]
[]
[]
[]
[]
[]
[null," TOTAL CARRIED FORWARD TO SUMMARY",{"$nulls":5},{"$f":"SUM(H953:H986)","v":{"v":0,"d":"R0.00"}}]
[null,"MAQUASSI HILLS LOCAL MUNICIPALITY"]
[null,"UPGRADING OF GRAVEL ROADS WITH THE ASSOCIATED STORMWATER MANAGEMENT "]
[null,"TO BLOCK PAVING IN UMDUBU, ISIDULI, KGWALE AND LEGODI STREETS IN KGAKALA "]
[null,"TOWNSHIP"]
[null,"BILL OF QUANTITIES"]
[{"$nulls":3},"SUMMARY OF SECTIONS"]
[null," ","SECTION","DESCRIPTION",{"$nulls":3},"AMOUNT R"]
[]
[null,null,"1","SECTION 1 : PRELIMINARY AND GENERAL",{"$nulls":3},{"$f":"$H$182","v":{"v":0,"d":"R0.00"}}]
[]
[null,null,"2","SECTION 2 : SITE CLEARANCE",{"$nulls":3},{"$f":"$H$230","v":{"v":0,"d":"R0.00"}}]
[]
[null,null,"3","SECTION 3 : STORMWATER DRAINAGE",{"$nulls":3},{"$f":"$H$467","v":{"v":0,"d":"R0.00"}}]
[]
[null,null,"4","SECTION 4 : EARTHWORKS (ROADS, SUBGRADE)",{"$nulls":3},{"$f":"$H$563","v":{"v":0,"d":"R0.00"}}]
[]
[null,null,"5","SECTION 5 : SUBBASE",{"$nulls":3},{"$f":"$H$612","v":{"v":0,"d":"R0.00"}}]
[]
[null,null,"6","SECTION 6: BASE",{"$nulls":3},{"$f":"$H$659","v":{"v":0,"d":"R0.00"}}]
[]
[null,null,"7","SECTION 7: ASPHALT BASE AND SURFACING",{"$nulls":3},{"$f":"$H$711","v":{"v":0,"d":"R0.00"}}]
[]
[null,null,"8","SECTION 8 : SEGMENTED PAVING",{"$nulls":3},{"$f":"$H$762","v":{"v":0,"d":"R0.00"}}]
[]
[null,null,"9","SECTION 9 : KERBING AND CHANNELLING",{"$nulls":3},{"$f":"$H$809","v":{"v":0,"d":"R0.00"}}]
[]
[null,null,"10","SECTION 10 : CABLE DUCTS",{"$nulls":3},{"$f":"$H$857","v":{"v":0,"d":"R0.00"}}]
[]
[null,null,"11","SECTION 11 : SUBSOIL DRAINS",{"$nulls":3},{"$f":"$H$904","v":{"v":0,"d":"R0.00"}}]
[]
[null,null,"12","SECTION 12 : ANCILLARY ROADWORKS",{"$nulls":3},{"$f":"$H$993","v":{"v":0,"d":"R0.00"}}]
[]
[{"$nulls":3},"Sub-total",{"$nulls":3},{"$f":"SUM(H1002:H1024)","v":{"v":0,"d":"R0.00"}}]
[]
[null,null,"13","Add 5% CONTINGENCIES",{"$nulls":3},{"$f":"H1026*0.05","v":{"v":0,"d":"R0.00"}}]
[{"$nulls":3},"Sub-total",{"$nulls":3},{"$f":"SUM(H1026:H1028)","v":{"v":0,"d":"R0.00"}}]
[]
[null,null,"14","Add 15% VAT",{"$nulls":3},{"$f":"H1029*0.15","v":{"v":0,"d":"R0.00"}}]
{"$rows_empty":9}
[null,null," TOTAL CARRIED FORWARD TO SUMMARY OF SCHEDULES",{"$nulls":4},{"$f":"SUM(H1029:H1040)","v":{"v":0,"d":"R0.00"}}]